bitfinex/quotes_ETHUSD_20260302
["timestamp","ask_amount","ask_price","bid_price","bid_amount"]
[1772437533201,1.81714113,1942.3,1942.2,0.0011]
[1772437533429,3.74714113,1942.3,1942.2,0.0011]
[1772437533603,0.53000732,1942.4,1942.2,0.0011]
[1772437533925,3.74708037,1942.4,1942.2,0.0011]
[1772437534114,1.93,1942.5,1942.2,0.52476434]
[1772437535327,1.931,1942.5,1942.2,0.52476434]
[1772437536002,3.21802046,1942.5,1942.2,0.52476434]
[1772437536198,0.30313652,1942.3,1942.2,0.0011]
[1772437536522,0.53000732,1942.4,1942.2,0.0011]
[1772437538913,1.28713381,1942.3,1942.2,0.0011]
[1772437539109,1.81714113,1942.3,1942.2,0.0011]
[1772437539637,9.06045548,1942.8,1942.2,0.52476434]
[1772437539638,2.69684863,1942.8,1942.2,0.52476434]
[1772437539817,1.81684863,1942.8,1942.3,0.52366434]
[1772437540131,1.936,1942.7,1942.3,0.52366434]
[1772437540828,3.22287622,1942.7,1942.3,0.52366434]
[1772437543233,0.53000732,1942.6,1942.2,0.0011]
[1772437543828,0.53000732,1942.5,1942.2,0.0011]
[1772437544027,1.51622517,1942.6,1942.2,0.0011]
[1772437544028,2.46800732,1942.4,1942.2,0.0011]
[1772437544229,2.46800732,1942.4,1942.0,0.5263032]
[1772437545206,1.28713381,1942.3,1942.0,0.5263032]
[1772437545413,1.81714113,1942.3,1942.0,0.00263886]
[1772437545612,0.53000732,1942.2,1942.0,0.00263886]
[1772437545913,1.28713381,1942.3,1942.0,0.5263032]
[1772437546441,1.81714113,1942.3,1942.0,0.00263886]
[1772437547542,0.53714115,1942.2,1942.0,0.00263886]
[1772437549421,1.943,1942.1,1942.0,0.00263886]
[1772437549945,3.23026636,1942.1,1942.0,0.00263886]
[1772437550244,3.76740751,1942.1,1942.0,0.00263886]
[1772437550442,2.48014115,1942.1,1942.0,0.00263886]
[1772437550742,1.943,1942.1,1942.0,0.00263886]
[1772437551042,3.23026636,1942.1,1942.0,0.00263886]
[1772437552641,3.76740751,1942.1,1942.0,0.00263886]
[1772437555521,3.77440751,1942.1,1942.0,0.00263886]
[1772437556329,0.53714115,1942.1,1942.0,0.00263886]
[1772437556534,2.48814115,1942.1,1942.0,0.00263886]
[1772437556733,1.28825315,1942.2,1942.0,0.5248209]
[1772437556936,1.952,1942.1,1942.0,0.5248209]
[1772437557535,3.23926636,1942.1,1942.0,0.00263886]
[1772437558555,1.952,1942.1,1942.0,0.00263886]
[1772437559255,3.77640751,1942.1,1942.0,0.00263886]
[1772437562659,4.079728,1942.1,1942.0,0.00263886]
[1772437562855,3.77640751,1942.1,1942.0,0.00263886]
[1772437563362,3.23926636,1942.1,1942.0,0.00263886]
[1772437564060,3.77640751,1942.1,1942.0,0.00263886]
[1772437564241,0.53714115,1942.0,1941.9,0.0011]
[1772437564932,2.12779428,1942.0,1941.9,0.0011]
[1772437565230,1.82447379,1942.0,1941.9,0.0011]
[1772437566955,2.12779428,1942.0,1941.9,0.0011]
[1772437567164,2.12779428,1942.0,1941.8,0.0011]
[1772437567165,0.53714115,1941.9,1941.8,0.0011]
[1772437567336,2.50114115,1941.9,1941.8,0.0011]
[1772437567542,0.53714115,1941.8,1941.7,0.0011]
[1772437568562,0.001,1942.0,1941.8,0.52218204]
[1772437568766,3.07324009,1942.1,1941.8,0.52218204]
[1772437568962,0.002,1942.2,1941.8,0.52218204]
[1772437569140,3.25420524,1942.2,1941.8,0.52218204]
[1772437570039,0.30332049,1942.0,1941.7,0.0011]
[1772437570257,0.30332049,1941.8,1941.5,0.52328204]
[1772437570452,0.84046164,1941.8,1941.5,0.52328204]
[1772437570655,0.30332049,1941.7,1941.5,0.52328204]
[1772437570842,1.28759785,1941.6,1941.5,0.0011]
[1772437571048,1.28759785,1941.6,1941.3,0.52218204]
[1772437571250,2.12905949,1941.6,1941.2,0.0011]
[1772437571652,2.72988441,1942.0,1941.4,0.52218204]
[1772437571653,1.82460777,1941.8,1941.4,0.52218204]
[1772437571960,2.50214115,1941.8,1941.4,0.52218204]
[1772437572572,0.53714115,1941.8,1941.4,0.52218204]
[1772437572864,3.79061298,1941.8,1941.4,0.52218204]
[1772437573969,0.53714115,1941.7,1941.2,0.52328204]
[1772437574166,0.53814115,1941.7,1941.2,0.52328204]
[1772437574369,0.53814115,1941.7,1941.2,0.0011]
[1772437574665,0.53714115,1941.7,1941.2,0.0011]
[1772437574877,0.001,1941.6,1941.3,0.49616258]
[1772437575165,1.28859785,1941.6,1941.3,0.49616258]
[1772437575382,0.001,1941.6,1941.3,0.49616258]
[1772437576466,0.50510195,1941.6,1941.2,0.0011]
[1772437576773,0.50610195,1941.5,1941.2,0.0011]
[1772437577965,1.79377591,1941.5,1941.2,0.49385103]
[1772437578170,1.79377591,1941.5,1941.2,0.0011]
[1772437579038,0.51131493,1941.4,1941.2,0.0011]
[1772437579242,1.28867396,1941.5,1941.2,0.0011]
[1772437579783,1.79998889,1941.5,1941.2,0.0011]
[1772437580118,0.51131493,1941.4,1941.2,0.0011]
[1772437580245,1.28867396,1941.5,1941.2,0.0011]
[1772437580246,3.76898889,1941.5,1941.2,0.0011]
[1772437580441,1.97,1941.5,1941.2,0.49385103]
[1772437580867,0.001,1941.5,1941.2,0.49385103]
[1772437581648,0.001,1942.0,1941.3,0.49275103]
[1772437581852,0.001,1941.9,1941.5,0.49275103]
[1772437582665,0.001,1942.2,1941.6,0.49275103]
[1772437583773,0.001,1942.2,1941.8,0.49275103]
[1772437585776,0.001,1942.2,1941.9,0.49275103]
[1772437585973,0.001,1942.1,1941.7,0.49275103]
[1772437586375,0.001,1942.1,1941.7,1.78027797]
[1772437586676,0.001,1942.0,1941.7,0.49275103]
[1772437586875,0.001,1942.0,1941.7,1.78027543]
[1772437587078,0.001,1942.0,1941.8,0.49275103]
[1772437588757,0.001,1942.0,1941.6,1.7802977]
[1772437588962,0.001,1942.0,1941.6,0.49275103]
[1772437589587,0.001,1942.0,1941.6,1.78034752]
[1772437589774,0.001,1942.2,1941.7,0.49275103]
[1772437590180,0.001,1942.2,1941.9,0.49275103]
[1772437594989,0.001,1942.2,1942.0,0.49275103]
[1772437595363,1.79834002,1942.5,1942.0,0.49275103]
[1772437595559,0.51131493,1942.5,1942.0,0.49275103]
[1772437596175,1.79832456,1942.5,1942.0,0.49275103]
[1772437597283,0.51131493,1942.4,1942.0,1.78008179]
[1772437597479,0.51131493,1942.4,1942.0,0.49275103]
[1772437598572,0.51131493,1942.3,1941.6,0.49275103]
[1772437599669,1.79851501,1942.2,1941.7,0.49275103]
[1772437601202,0.51131493,1942.2,1941.7,0.49275103]
[1772437601408,1.79842579,1942.4,1941.7,0.49275103]
[1772437602498,0.51131493,1942.3,1941.9,0.49275103]
[1772437602706,0.51131493,1942.3,1941.8,1.78021626]
[1772437602998,0.001,1942.2,1941.8,1.78021626]
[1772437604725,0.51231493,1942.2,1941.8,0.49275103]
[1772437604995,0.51231493,1942.2,1941.8,1.78021312]
[1772437605181,0.001,1942.2,1941.9,0.49275103]
[1772437606574,0.51231493,1942.2,1941.8,1.28746209]
[1772437606799,0.51231493,1942.2,1941.7,0.49385103]
[1772437606800,1.79953185,1942.2,1941.7,1.78133264]
[1772437606998,1.79953185,1942.2,1941.8,0.49275103]
[1772437609079,0.51231493,1942.2,1941.8,1.78021404]
[1772437610198,0.51613505,1941.9,1941.7,0.0011]
[1772437610988,1.28733264,1942.0,1941.7,0.51977362]
[1772437611183,1.80345484,1942.1,1941.7,0.51977362]
[1772437611602,0.51613505,1942.0,1941.7,0.51977362]
[1772437611911,0.51613505,1942.0,1941.7,0.0011]
[1772437612606,0.51613505,1941.9,1941.7,0.0011]
[1772437614923,1.80353398,1941.9,1941.8,0.0011]
[1772437615411,0.51613505,1941.9,1941.8,0.0011]
[1772437615719,1.80353398,1941.9,1941.8,0.0011]
[1772437615902,0.51613505,1941.9,1941.8,0.0011]
[1772437616102,1.80353398,1941.9,1941.8,0.0011]
[1772437616533,0.51613505,1941.9,1941.8,0.0011]
[1772437616693,1.80353398,1941.9,1941.8,0.0011]
[1772437617220,0.51613505,1941.8,1941.7,0.0011]
[1772437620130,1.80360028,1941.8,1941.7,0.0011]
[1772437620620,0.51613505,1941.8,1941.7,0.0011]
[1772437620923,1.80360028,1941.8,1941.7,0.0011]
[1772437621392,0.51613505,1941.7,1941.5,0.0011]
[1772437623392,1.8037329,1941.6,1941.5,0.0011]
[1772437625432,0.51613505,1941.5,1941.2,0.0011]
[1772437626008,0.51613505,1941.3,1941.1,0.0011]
[1772437627729,1.80394701,1941.3,1941.1,0.0011]
[1772437628402,0.51613505,1941.1,1940.8,0.0011]
[1772437628604,0.97114432,1940.9,1940.7,0.0011]
[1772437628808,0.51613505,1940.8,1940.4,0.0011]
[1772437629028,0.51613505,1940.8,1940.6,0.00483886]
[1772437629638,0.51613505,1940.7,1940.6,0.00483886]
[1772437629820,0.51613505,1940.7,1940.4,0.0011]
[1772437630140,0.51613505,1941.1,1940.7,0.51066438]
[1772437630632,0.51613505,1941.1,1940.5,0.51176438]
[1772437630808,0.51613505,1941.1,1940.6,0.51550324]
[1772437631220,0.51613505,1940.9,1940.6,0.00483886]
[1772437632035,1.80420681,1940.9,1940.6,0.00483886]
[1772437632825,0.51613505,1941.4,1940.7,0.50857374]
[1772437633002,0.51613505,1941.3,1940.8,0.50967374]
[1772437633202,0.51613505,1941.3,1940.9,0.0011]
[1772437633432,0.97114432,1941.3,1940.9,0.0011]
[1772437633627,1.973,1941.4,1940.5,0.0011]
[1772437633628,0.51613505,1941.0,1940.5,0.0011]
[1772437633804,0.51613505,1940.8,1940.5,0.0011]
[1772437634318,1.80432737,1940.8,1940.5,0.0011]
[1772437635132,0.48119598,1940.7,1940.5,0.0011]
[1772437635334,0.48119598,1940.5,1940.0,1.29016786]
[1772437635834,0.48119598,1940.5,1940.0,0.5111743]
[1772437636038,0.48119598,1940.5,1940.0,0.00153886]
[1772437636039,0.48119598,1940.4,1940.0,0.00153886]
[1772437636234,1.76949054,1940.6,1940.0,0.5111743]
[1772437636418,1.28829456,1940.6,1940.0,0.5111743]
[1772437636618,0.48119598,1940.5,1939.8,1.28988251]
[1772437636821,0.48119598,1940.1,1939.8,0.0011]
[1772437637051,5.15279236,1940.7,1939.8,0.0011]
[1772437637052,1.80984374,1940.7,1939.9,0.50898526]
[1772437637212,1.80973481,1940.9,1940.1,0.50834255]
[1772437637644,1.80969749,1940.9,1940.1,0.50834255]
[1772437637943,0.52162947,1940.8,1940.1,0.50834255]
[1772437638533,0.52316833,1941.0,1940.3,0.50770721]
[1772437638755,0.52162947,1940.9,1940.3,0.50770721]
[1772437639654,0.52162947,1940.8,1940.3,0.50770721]
[1772437640625,0.52316833,1941.0,1940.5,0.50645836]
[1772437641125,0.52162947,1941.2,1940.5,0.50584467]
[1772437641452,1.28783933,1941.3,1940.5,0.50584467]
[1772437641836,1.8094688,1941.3,1940.5,0.50584467]
[1772437642336,0.52162947,1941.3,1940.5,0.50584467]
[1772437642548,1.80942726,1941.3,1940.7,0.50523802]
[1772437642948,0.52162947,1941.3,1940.7,0.50523802]
[1772437643549,0.52162947,1941.3,1940.6,1.28826136]
[1772437643550,1.80929518,1941.5,1940.9,0.50463835]
[1772437644030,0.001,1941.6,1940.9,0.50463835]
[1772437644630,0.001,1941.6,1941.1,0.50404556]
[1772437645765,2.04126024,1941.6,1940.9,1.79147634]
[1772437646134,0.52162947,1941.5,1940.9,1.79147634]
[1772437646329,0.52162947,1941.5,1941.0,0.50288034]
[1772437646962,0.52162947,1941.5,1940.7,5.15277415]
[1772437647167,0.52162947,1941.4,1940.8,1.79043635]
[1772437647559,0.52162947,1941.4,1940.9,0.50230775]
[1772437647875,0.52162947,1941.3,1940.8,1.2881286]
[1772437648035,0.52162947,1941.3,1940.7,3.21590082]
[1772437648364,0.52162947,1941.3,1940.7,0.50174173]
[1772437648663,0.52162947,1941.3,1940.6,1.28823183]
[1772437648845,0.52162947,1941.1,1940.5,1.79001818]
[1772437649048,0.52162947,1941.0,1940.5,1.79001818]
[1772437649447,0.52162947,1941.0,1940.5,1.79006657]
[1772437649651,0.52162947,1941.4,1940.6,0.50118221]
[1772437649949,0.52162947,1941.3,1940.6,0.50118221]
[1772437650836,0.52162947,1941.1,1940.6,0.50118221]
[1772437651249,1.80962534,1941.0,1940.4,1.78843634]
[1772437651869,3.32825611,1941.0,1940.4,0.50008239]
[1772437652170,0.52162947,1940.9,1940.4,1.78847476]
[1772437652779,0.52162947,1940.9,1940.4,0.50008239]
[1772437653076,0.52162947,1940.9,1940.3,1.28842831]
[1772437653238,0.52162947,1940.8,1940.3,1.28842831]
[1772437654074,0.52162947,1940.8,1940.3,1.78690788]
[1772437654256,0.52162947,1941.2,1940.4,0.49847957]
[1772437654460,0.52162947,1941.2,1940.6,0.49847957]
[1772437655374,1.80950194,1941.2,1940.7,1.28819498]
[1772437655552,0.52162947,1941.1,1940.7,1.28819498]
[1772437656254,0.52162947,1941.1,1940.5,5.15318579]
[1772437658873,0.52162947,1941.0,1940.4,0.49795753]
[1772437659060,0.52162947,1941.0,1940.4,1.28834375]
[1772437659371,0.52162947,1940.9,1940.3,5.15368763]
[1772437659586,0.52162947,1940.9,1940.2,1.92492862]
[1772437659875,0.52162947,1940.9,1940.3,1.28846054]
[1772437660176,0.52162947,1940.9,1940.4,2.01406664]
[1772437661451,0.52162947,1940.9,1940.4,0.49543587]
[1772437662344,0.52162947,1940.8,1940.3,5.15371472]
[1772437662875,0.52162947,1940.8,1940.3,5.64770605]
[1772437663076,0.52162947,1940.8,1940.5,0.0011]
[1772437668482,1.80976679,1940.8,1940.5,0.0011]
[1772437668781,0.51643412,1940.7,1940.5,0.0011]
[1772437668984,0.51643412,1940.6,1940.5,0.0011]
[1772437669476,0.51643412,1940.8,1940.5,0.0011]
[1772437675093,0.001,1940.9,1940.5,0.48937917]
[1772437675294,0.51743412,1940.9,1940.6,1.28936136]
[1772437675971,0.51743412,1940.9,1940.6,0.48897428]
[1772437677121,0.51743412,1940.9,1940.6,0.0011]
[1772437677269,1.28906467,1940.9,1940.6,0.0011]
[1772437677471,0.51643412,1940.8,1940.6,0.0011]
[1772437679397,1.8046291,1940.7,1940.6,0.0011]
[1772437679800,0.51643412,1940.7,1940.6,0.0011]
[1772437680296,1.28906525,1940.9,1940.6,0.48740072]
[1772437680500,0.001,1940.9,1940.6,0.48740072]
[1772437680700,1.28879956,1941.3,1940.8,0.48630072]
[1772437681586,1.28879956,1941.3,1940.9,0.48591856]
[1772437681899,0.51643412,1941.2,1940.8,0.48554079]
[1772437682274,0.51743412,1941.3,1940.8,0.48554079]
[1772437683400,0.51643412,1941.1,1940.6,0.48626735]
[1772437683610,1.28793599,1941.1,1940.6,1.77452556]
[1772437683815,0.51643412,1941.0,1940.6,1.77452556]
[1772437684314,0.51643412,1941.0,1940.6,0.48626735]
[1772437684470,0.51643412,1941.0,1940.6,1.77452577]
[1772437684671,1.80434343,1941.2,1940.7,0.48479821]
[1772437684974,0.51643412,1941.1,1940.7,0.48479821]
[1772437685173,0.51643412,1941.1,1940.6,0.0011]
[1772437685701,1.80438626,1941.1,1940.6,0.48553331]
[1772437686082,1.80438626,1941.1,1940.6,1.77378419]
[1772437686302,0.51643412,1941.1,1940.6,1.77378419]
[1772437686504,1.80526152,1941.3,1940.7,0.4840726]
[1772437686703,0.51643412,1941.2,1940.7,0.4840726]
[1772437687104,0.51643412,1941.2,1940.7,0.4851726]
[1772437687306,0.51743412,1941.2,1940.7,0.4851726]
[1772437688774,1.80533996,1941.2,1940.7,0.4851726]
[1772437689804,0.51643412,1941.1,1940.7,0.4851726]
[1772437690105,0.51643412,1941.1,1940.7,0.0011]
[1772437690879,1.80440688,1941.1,1940.7,0.48343024]
[1772437691080,1.28886836,1941.2,1940.7,0.48343024]
[1772437691706,1.80530248,1941.2,1940.7,0.48343024]
[1772437691911,0.001,1941.2,1940.7,0.48343024]
[1772437692403,0.001,1941.3,1940.9,0.48099369]
[1772437693609,0.001,1941.3,1940.8,0.480661]
[1772437693811,0.51743412,1941.3,1940.7,0.0011]
[1772437694401,0.51743412,1941.3,1940.8,0.48033213]
[1772437694976,0.001,1941.3,1940.9,0.47968568]
[1772437695601,1.28879683,1941.3,1940.9,0.47968568]
[1772437695804,2.05954233,1941.3,1940.7,1.76861965]
[1772437696015,0.46719989,1941.2,1940.7,1.76861965]
[1772437696715,0.46719989,1941.2,1940.8,0.47936801]
[1772437698005,1.75506571,1941.2,1940.8,0.47936801]
[1772437698206,0.46719989,1941.2,1940.8,0.47936801]
[1772437699012,0.46719989,1941.2,1940.8,0.0011]
[1772437699220,1.28883169,1941.3,1940.9,0.47813342]
[1772437699387,0.001,1941.2,1940.9,0.47813342]
[1772437701496,0.001,1941.2,1941.0,0.93286451]
[1772437701698,0.001,1941.3,1941.0,0.47753719]
[1772437702091,0.001,1941.3,1941.0,1.76549044]
[1772437702291,0.001,1941.3,1941.2,0.4762442]
[1772437702715,0.001,1941.3,1941.0,1.76419745]
[1772437703117,0.001,1941.3,1941.1,0.47595458]
[1772437704117,1.75977364,1941.6,1941.3,0.47566828]
[1772437704118,0.001,1941.6,1941.3,0.47566828]
[1772437704921,1.7600035,1942.0,1941.5,0.47538527]
[1772437705126,0.47265063,1942.0,1941.6,0.93071259]
[1772437705619,1.75998675,1942.0,1941.6,0.47538527]
[1772437706023,1.75998675,1942.0,1941.3,0.47510551]
[1772437706222,0.47265063,1942.0,1941.4,1.2877305]
[1772437706521,0.47265063,1942.0,1941.5,0.47510551]
[1772437706522,1.75999981,1942.0,1941.5,0.47510551]
[1772437707228,2.21532713,1942.0,1941.5,0.47510551]
[1772437707794,1.75999981,1942.0,1941.5,0.47510551]
[1772437708499,0.47111177,1941.9,1941.5,0.47510551]
[1772437710232,0.00153886,1942.0,1941.6,0.47401825]
[1772437710728,0.001,1941.9,1941.6,0.47401825]
[1772437711295,0.001,1941.9,1941.7,0.47375419]
[1772437711521,0.001,1942.2,1941.9,0.47375419]
[1772437711720,1.28700749,1942.5,1941.9,0.47375419]
[1772437711924,0.47111177,1942.4,1941.7,0.47375419]
[1772437712512,0.92643909,1942.4,1941.7,0.47375419]
[1772437712710,2.2135166,1942.4,1941.9,0.47349317]
[1772437713634,1.75818928,1942.4,1941.9,0.47349317]
[1772437714134,0.47111177,1942.3,1941.9,0.47349317]
[1772437714812,0.47111177,1942.3,1941.9,1.76088337]
[1772437715133,1.75818928,1942.4,1941.9,1.76088337]
[1772437715317,0.47111177,1942.3,1941.9,0.47349317]
[1772437715523,0.47111177,1942.3,1941.7,0.47272795]
[1772437717236,0.47111177,1942.1,1941.7,0.47272795]
[1772437717409,0.47111177,1942.1,1941.6,3.19282176]
[1772437717610,1.2870673,1942.5,1942.0,0.92755966]
[1772437717908,1.75798824,1942.7,1942.3,0.4719888]
[1772437718342,0.47111177,1942.7,1942.3,0.4719888]
[1772437718939,1.28680311,1942.8,1942.3,0.4719888]
[1772437719119,1.75791488,1942.8,1942.3,0.4719888]
[1772437719516,1.75791488,1942.8,1942.3,1.7591159]
[1772437719721,0.47111177,1942.7,1942.1,0.47174805]
[1772437719936,0.47111177,1942.7,1942.1,1.7590045]
[1772437721138,0.47111177,1942.7,1942.2,0.47127483]
[1772437722140,1.2868339,1942.8,1942.3,0.47104228]
[1772437722438,1.75794567,1942.8,1942.3,0.47104228]
[1772437722638,0.92743909,1942.7,1942.3,0.47104228]
[1772437722817,0.47111177,1942.6,1942.1,0.47104228]
[1772437724130,1.75809932,1942.6,1942.1,1.75830039]
[1772437724336,1.75809932,1942.6,1942.2,0.47058517]
[1772437724859,1.28787961,1942.7,1942.3,0.47036055]
[1772437725748,0.001,1942.7,1942.3,0.47036055]
[1772437725914,0.001,1942.7,1942.4,0.4701385]
[1772437726318,0.001,1942.7,1942.4,1.75715389]
[1772437726519,0.001,1942.7,1942.4,0.4701385]
[1772437727851,0.001,1942.7,1942.5,0.46515233]
[1772437729765,0.001,1942.7,1942.5,1.75214364]
[1772437729919,0.001,1942.9,1942.6,0.46515233]
[1772437730122,0.48774068,1942.8,1942.4,0.46515233]
[1772437731337,0.48774068,1942.8,1942.4,1.75220004]
[1772437732850,1.28680447,1942.8,1942.3,1.2870819]
[1772437733034,0.48774068,1942.7,1942.3,1.2870819]
[1772437733235,0.48774068,1942.7,1942.3,1.75223423]
[1772437734749,0.48774068,1942.7,1942.5,0.0011]
[1772437734950,0.48874068,1942.7,1942.5,0.0011]
[1772437735146,0.001,1942.7,1942.5,0.0011]
[1772437736357,0.48874068,1942.7,1942.5,0.0011]
[1772437737263,0.00153886,1943.0,1942.6,0.46515233]
[1772437737570,0.001,1943.2,1942.9,0.46515233]
[1772437739549,0.001,1943.2,1943.0,0.46515233]
[1772437739756,0.48774068,1943.1,1942.5,0.0011]
[1772437739952,0.48774068,1943.1,1942.5,1.28808722]
[1772437740569,0.48774068,1943.1,1942.5,1.7531853]
[1772437740945,0.48774068,1943.1,1942.5,3.1871853]
[1772437741369,0.48774068,1942.9,1942.5,0.0011]
[1772437743934,1.77454323,1942.8,1942.5,0.0011]
[1772437747395,1.77454323,1942.8,1942.2,0.0011]
[1772437747396,0.48774068,1942.7,1942.2,0.0011]
[1772437747632,0.48774068,1942.5,1942.0,0.00153886]
[1772437748135,0.48774068,1942.3,1942.0,0.00153886]
[1772437748543,0.48774068,1941.9,1941.8,0.0011]
[1772437749301,0.48774068,1941.9,1941.6,0.0011]
[1772437751656,1.77514854,1941.9,1941.6,0.0011]
[1772437752706,0.48774068,1941.8,1941.6,0.0011]
[1772437754560,1.28748068,1941.8,1941.6,0.0011]
[1772437754701,0.46096509,1941.7,1941.6,0.0011]
[1772437755642,1.74840713,1941.9,1941.6,0.0011]
[1772437756016,0.46096509,1941.9,1941.6,0.0011]
[1772437758439,1.7483647,1941.9,1941.6,0.0011]
[1772437759025,1.28739961,1941.9,1941.6,0.0011]
[1772437759211,0.47823418,1941.8,1941.6,0.0011]
[1772437760646,0.47823418,1941.8,1941.7,0.0011]
[1772437762112,0.47823418,1942.2,1941.7,0.45927262]
[1772437762748,1.7654478,1942.2,1941.7,0.45927262]
[1772437762927,0.47823418,1942.1,1941.7,0.0011]
[1772437765142,1.76556682,1942.0,1941.7,0.0011]
[1772437765640,0.47823418,1942.0,1941.7,0.0011]
[1772437767908,1.76561426,1942.0,1941.7,0.0011]
[1772437768113,0.47823418,1941.9,1941.7,0.0011]
[1772437771154,0.47823418,1941.7,1941.5,0.0011]
[1772437771349,0.47823418,1941.5,1941.0,0.45971148]
[1772437771642,0.47823418,1941.5,1941.0,0.00153886]
[1772437772256,0.47823418,1941.3,1941.0,0.00153886]
[1772437772822,0.47823418,1941.3,1941.1,0.0011]
[1772437779352,0.47823418,1941.5,1941.1,0.0011]
[1772437779743,1.7659496,1941.5,1941.1,0.0011]
[1772437780951,1.28771542,1941.5,1941.1,0.0011]
[1772437781158,0.47823418,1941.4,1941.1,0.0011]
[1772437783455,1.76597477,1941.4,1941.1,0.0011]
[1772437783830,0.47823418,1941.4,1941.1,0.0011]
[1772437784967,0.47923418,1941.4,1941.1,0.0011]
[1772437786164,0.47823418,1941.3,1941.1,0.0011]
[1772437786677,0.47823418,1941.3,1941.0,0.00263886]
[1772437787954,2.80564735,1941.4,1940.8,0.0011]
[1772437787955,0.4734663,1941.1,1940.8,0.0011]
[1772437788351,1.76140065,1941.1,1940.8,0.0011]
[1772437788549,1.76142033,1941.1,1940.8,0.0011]
[1772437788959,0.4734663,1941.1,1940.8,0.0011]
[1772437789463,0.4734663,1941.1,1940.8,0.4622414]
[1772437789681,0.001,1941.4,1941.0,0.4611414]
[1772437790503,0.001,1941.4,1941.2,0.76444069]
[1772437790672,0.001,1941.4,1941.3,0.46104018]
[1772437793877,0.4744663,1941.4,1940.8,0.0011]
[1772437794457,1.76139582,1941.1,1940.8,0.0011]
[1772437794780,0.4734663,1941.1,1940.8,0.0011]
[1772437795182,0.4744663,1941.4,1940.9,0.4817343]
[1772437795364,1.7621975,1941.4,1940.9,0.4817343]
[1772437795682,0.4734663,1941.3,1940.9,0.4817343]
[1772437796351,0.4734663,1941.3,1940.9,0.4828343]
[1772437796670,1.7622786,1941.3,1940.9,0.4828343]
[1772437797458,0.4734663,1941.2,1940.9,0.4828343]
[1772437797659,0.4734663,1941.2,1940.9,0.0011]
[1772437797861,1.2888123,1941.3,1940.9,0.4828343]
[1772437798574,1.7622786,1941.3,1940.9,0.4828343]
[1772437798770,0.4744663,1941.3,1940.9,0.4828343]
[1772437799082,1.7622658,1941.3,1940.9,0.4828343]
[1772437799581,0.4744663,1941.3,1940.9,0.4828343]
[1772437800464,0.4744663,1941.3,1941.0,0.4817343]
[1772437800667,0.001,1941.3,1941.0,0.4817343]
[1772437800969,1.76103972,1941.7,1941.2,0.4817343]
[1772437801178,0.4734663,1941.6,1941.2,0.4817343]
[1772437801998,3.71797792,1941.8,1941.2,0.4817343]
[1772437802157,0.4734663,1941.7,1941.2,0.4817343]
[1772437802903,1.76103093,1941.7,1941.2,0.4817343]
[1772437803090,0.001,1941.8,1941.4,0.4817343]
[1772437803388,0.001,1941.8,1941.5,0.4817343]
[1772437807269,0.001,1941.8,1941.6,0.4817343]
[1772437808756,0.001,1941.7,1941.6,0.4817343]
[1772437809886,0.001,1941.7,1941.4,1.9107343]
[1772437810087,0.4744663,1941.7,1941.3,0.0011]
[1772437810383,0.4744663,1941.7,1941.3,0.4828343]
[1772437810777,0.4744663,1941.7,1941.3,1.77062941]
[1772437810973,0.4744663,1941.7,1941.4,0.4817343]
[1772437811175,0.001,1941.7,1941.4,0.4817343]
[1772437812380,0.001,1941.7,1941.5,0.4817343]
[1772437813376,0.00153886,1942.0,1941.7,0.4817343]
[1772437813868,1.28887467,1942.0,1941.7,0.4817343]
[1772437814067,1.28887467,1942.0,1941.5,1.28760739]
[1772437814392,1.76234097,1942.0,1941.6,0.4817343]
[1772437814891,0.47500516,1942.0,1941.6,0.4817343]
[1772437815259,0.00153886,1942.0,1941.6,0.4817343]
[1772437815787,0.00153886,1942.0,1941.6,1.28754902]
[1772437815991,0.00153886,1942.0,1941.7,0.46591782]
[1772437816292,0.45584974,1942.0,1941.7,0.46591782]
[1772437816493,0.45584974,1942.0,1941.5,1.89791782]
[1772437817295,0.45584974,1942.0,1941.6,0.45578078]
[1772437818689,1.77683399,1941.9,1941.4,1.74345987]
[1772437818895,0.48943506,1941.8,1941.3,1.28889247]
[1772437819078,0.48943506,1941.8,1941.3,0.45688078]
[1772437819266,0.48943506,1941.8,1941.3,1.74466544]
[1772437819562,0.48943506,1941.8,1941.4,0.45578078]
[1772437820527,1.28739893,1941.9,1941.4,0.45578078]
[1772437820697,1.77683399,1941.9,1941.4,0.45578078]
[1772437821266,1.77783399,1941.9,1941.5,0.45578078]
[1772437821666,0.48943506,1941.8,1941.5,0.45578078]
[1772437822096,0.48943506,1941.8,1941.3,1.74463781]
[1772437822276,0.48943506,1941.8,1941.3,1.88988078]
[1772437822598,0.48943506,1941.8,1941.3,3.1776619]
[1772437823300,1.28839893,1941.9,1941.4,0.45578078]
[1772437823499,1.77783399,1941.9,1941.4,0.45578078]
[1772437823701,0.48943506,1941.8,1941.4,0.45578078]
[1772437824699,0.001,1941.9,1941.5,0.45578078]
[1772437826297,0.001,1941.9,1941.7,0.45578078]
[1772437828904,0.49043506,1941.9,1941.5,1.89078078]
[1772437829997,0.49043506,1941.9,1941.6,0.45578078]
[1772437830382,0.001,1941.9,1941.6,1.74337107]
[1772437831298,0.001,1941.9,1941.7,0.45578078]
[1772437831505,0.001,1941.9,1941.6,1.28759029]
[1772437831711,0.49043506,1941.9,1941.6,3.17937107]
[1772437831912,0.001,1941.9,1941.6,3.17937107]
[1772437833407,0.001,1941.9,1941.6,3.18047107]
[1772437834782,0.001,1941.9,1941.6,1.89288078]
[1772437834998,0.49043506,1941.9,1941.6,0.0011]
[1772437835199,0.00153886,1942.0,1941.8,0.45578078]
[1772437838414,0.00153886,1942.0,1941.7,1.28747098]
[1772437838711,0.00153886,1942.0,1941.7,1.74325176]
[1772437840084,7.27180169,1942.6,1941.7,1.74325176]
[1772437840085,0.48943506,1942.5,1941.8,0.45578078]
[1772437840284,1.28680255,1942.8,1942.0,0.45578078]
[1772437840285,0.48943506,1942.7,1942.0,0.45578078]
[1772437840525,0.49043506,1942.9,1942.2,0.45578078]
[1772437840682,0.49043506,1942.9,1942.4,0.45578078]
[1772437841686,0.001,1942.9,1942.4,0.45578078]
[1772437842188,0.001,1942.9,1942.6,0.45578078]
[1772437842483,0.00153886,1943.0,1942.8,0.45578078]
[1772437844702,0.00153886,1943.0,1942.8,1.742553]
[1772437845905,0.001,1942.9,1942.8,1.742553]
[1772437846294,0.001,1942.9,1942.8,0.45578078]
[1772437847425,0.001,1942.9,1942.8,1.74258333]
[1772437847608,0.001,1942.9,1942.8,0.45578078]
[1772437849016,0.001,1942.9,1942.8,1.90078078]
[1772437849994,0.50272384,1943.2,1942.9,0.45952484]
[1772437850933,0.001,1943.2,1942.9,0.45952484]
[1772437851915,0.001,1943.2,1942.9,1.90652484]
[1772437852115,0.001,1943.2,1942.9,3.19323049]